bitfinex/quotes_SOLUSD_20250508
["timestamp","ask_amount","ask_price","bid_price","bid_amount"]
[1746680412152,18.19742273,151.15,151.11,11.58147831]
[1746680412355,18.19742273,151.15,151.08,8.23237949]
[1746680412564,18.19742273,151.15,151.1,11.58147831]
[1746680412745,6.61594442,151.15,151.11,11.58147831]
[1746680413063,0.14216157,151.18,151.08,8.23237949]
[1746680413064,18.19610987,151.18,151.13,11.58147831]
[1746680413366,6.61463156,151.18,151.14,11.58147831]
[1746680413861,6.61463156,151.18,151.15,11.58147831]
[1746680414061,16.53526291,151.2,151.15,11.58147831]
[1746680414251,6.61375661,151.2,151.14,26.0]
[1746680414560,18.19523492,151.2,151.16,11.58147831]
[1746680414771,6.61375661,151.2,151.16,11.58147831]
[1746680415592,18.19523492,151.2,151.15,11.58147831]
[1746680415880,18.19523492,151.2,151.16,11.58147831]
[1746680416983,6.61375661,151.2,151.16,11.58147831]
[1746680417170,18.19523492,151.2,151.16,11.58147831]
[1746680417887,18.19523492,151.2,151.15,1.6459]
[1746680418091,11.58147831,151.19,151.15,1.6459]
[1746680418268,11.58147831,151.19,151.15,13.22737831]
[1746680418680,34.72962645,151.2,151.15,13.22737831]
[1746680419200,34.72962645,151.2,151.15,1.6459]
[1746680419367,34.72962645,151.2,151.15,13.22737831]
[1746680419877,23.14814814,151.2,151.15,13.22737831]
[1746680420077,34.72962645,151.2,151.15,13.22737831]
[1746680420498,6.61375661,151.2,151.17,11.58147831]
[1746680422096,6.61288189,151.22,151.18,11.58147831]
[1746680422397,6.61288189,151.22,151.19,11.58147831]
[1746680423390,23.14213662,151.24,151.19,11.58147831]
[1746680423589,11.58147831,151.23,151.19,11.58147831]
[1746680424897,23.14213662,151.24,151.19,11.58147831]
[1746680425188,11.58147831,151.2,151.16,16.78]
[1746680425389,18.64964886,151.23,151.16,16.78]
[1746680425390,6.61463156,151.18,151.16,16.78]
[1746680425599,11.58147831,151.17,151.12,16.78]
[1746680425769,11.58147831,151.16,151.12,16.78]
[1746680425972,11.58147831,151.16,151.12,11.58147831]
[1746680426702,23.15121047,151.18,151.11,34.0108]
[1746680426878,18.19610987,151.18,151.11,8.0108]
[1746680427077,18.19610987,151.18,151.11,34.0108]
[1746680427380,18.19610987,151.18,151.13,11.58147831]
[1746680429199,18.19610987,151.18,151.14,11.58147831]
[1746680430195,18.19610987,151.18,151.13,11.58147831]
[1746680430396,11.58147831,151.17,151.13,11.58147831]
[1746680430596,11.58147831,151.15,151.11,27.5565]
[1746680430995,11.58147831,151.15,151.11,39.13797831]
[1746680431504,6.61638216,151.14,151.11,39.13797831]
[1746680432015,6.61638216,151.14,151.11,27.5565]
[1746680432300,6.61638216,151.14,151.11,39.13797831]
[1746680433650,6.61594442,151.15,151.11,39.13797831]
[1746680433906,6.61594442,151.15,151.12,11.58147831]
[1746680434281,6.61594442,151.15,151.13,11.58147831]
[1746680434682,11.58147831,151.17,151.14,11.58147831]
[1746680434683,6.61506912,151.17,151.14,11.58147831]
[1746680434889,6.61506912,151.17,151.15,11.58147831]
[1746680435092,6.61419406,151.19,151.16,11.58147831]
[1746680436015,11.58147831,151.18,151.11,34.17405574]
[1746680436221,11.58147831,151.16,151.12,11.58147831]
[1746680436618,11.58147831,151.16,151.11,39.13797831]
[1746680436799,11.58147831,151.16,151.11,27.5565]
[1746680437000,11.58147831,151.16,151.12,11.58147831]
[1746680437199,11.58147831,151.17,151.12,11.58147831]
[1746680437408,6.61550674,151.16,151.12,11.58147831]
[1746680437909,18.19698505,151.16,151.11,27.5565]
[1746680438117,18.19698505,151.16,151.12,11.58147831]
[1746680441897,6.61550674,151.16,151.12,11.58147831]
[1746680442102,6.61550674,151.16,151.11,1.5565]
[1746680442306,18.19698505,151.16,151.11,13.13797831]
[1746680442520,18.19698505,151.16,151.12,11.58147831]
[1746680443812,11.58147831,151.14,151.1,16.78]
[1746680444120,11.58147831,151.14,151.09,11.58147831]
[1746680444502,11.58147831,151.14,151.07,33.705]
[1746680444702,11.58147831,151.14,151.09,11.58147831]
[1746680444902,6.61681995,151.13,151.09,11.58147831]
[1746680445414,18.19799334,151.14,151.1,11.58147831]
[1746680445713,6.61651503,151.14,151.1,11.58147831]
[1746680446901,18.19799334,151.14,151.09,11.58147831]
[1746680447099,18.19799334,151.14,151.1,11.58147831]
[1746680447329,6.61651503,151.14,151.1,11.58147831]
[1746680447735,11.58147831,151.14,151.1,11.58147831]
[1746680448934,11.58147831,151.15,151.11,11.58147831]
[1746680449115,16.53876686,151.16,151.11,11.58147831]
[1746680449313,11.58147831,151.15,151.11,11.58147831]
[1746680450235,6.61638216,151.14,151.11,11.58147831]
[1746680451037,6.61638216,151.14,151.12,11.58147831]
[1746680451331,6.61638216,151.14,151.09,6.61837405]
[1746680451635,6.61638216,151.14,151.12,11.58147831]
[1746680452023,6.61506912,151.17,151.13,11.58147831]
[1746680454344,6.61506912,151.17,151.14,11.58147831]
[1746680455535,34.73422024,151.17,151.09,6.61841206]
[1746680455716,34.73422024,151.17,151.13,11.58147831]
[1746680457625,23.15274193,151.17,151.13,11.58147831]
[1746680459227,23.15274193,151.17,151.1,26.0]
[1746680459430,23.15274193,151.17,151.13,11.58147831]
[1746680459625,6.61419406,151.19,151.16,11.58147831]
[1746680459830,134.6,151.22,151.18,11.58147831]
[1746680460142,134.6,151.22,151.19,11.58147831]
[1746680460350,134.6,151.22,151.18,11.58147831]
[1746680460524,11.58147831,151.19,151.14,16.76]
[1746680460728,11.58147831,151.19,151.14,28.34147831]
[1746680461038,11.58147831,151.19,151.15,11.58147831]
[1746680461236,18.64964886,151.2,151.15,11.58147831]
[1746680461534,18.19567237,151.19,151.14,11.58147831]
[1746680462945,6.61419406,151.19,151.15,11.58147831]
[1746680463130,18.19567237,151.19,151.15,11.58147831]
[1746680463321,11.58147831,151.18,151.13,1.6154]
[1746680463656,11.58147831,151.18,151.13,13.19687831]
[1746680464445,11.58147831,151.18,151.14,11.58147831]
[1746680464830,6.61506912,151.17,151.14,11.58147831]
[1746680465020,11.58147831,151.16,151.1,42.76]
[1746680465224,11.58147831,151.13,151.09,1.5713]
[1746680465535,11.58147831,151.13,151.09,13.15277831]
[1746680465739,134.6,151.16,151.11,11.58147831]
[1746680465926,134.6,151.16,151.13,11.58147831]
[1746680466414,146.18147831,151.16,151.11,11.58147831]
[1746680466619,11.58147831,151.15,151.1,37.58147831]
[1746680466818,6.61681995,151.13,151.1,37.58147831]
[1746680467552,6.61681995,151.13,151.11,11.58147831]
[1746680467849,6.61681995,151.13,151.1,11.58147831]
[1746680468140,6.6165015,151.14,151.1,11.58147831]
[1746680468449,141.21580954,151.16,151.13,11.58147831]
[1746680468745,134.6,151.16,151.14,11.58147831]
[1746680468955,6.61521401,151.17,151.14,11.58147831]
[1746680469252,6.61521401,151.17,151.13,11.58147831]
[1746680469546,11.58147831,151.15,151.11,11.58147831]
[1746680469752,11.58147831,151.15,151.1,11.58147831]
[1746680470126,11.58147831,151.15,151.11,11.58147831]
[1746680470540,11.58147831,151.15,151.09,18.3313]
[1746680470853,11.58147831,151.15,151.11,11.58147831]
[1746680471021,6.61594442,151.15,151.11,11.58147831]
[1746680471748,11.58147831,151.14,151.1,11.58147831]
[1746680473256,6.61681995,151.13,151.1,11.58147831]
[1746680474530,18.19829826,151.13,151.09,1.5713]
[1746680474841,6.61681995,151.13,151.09,13.15277831]
[1746680475947,18.19829826,151.13,151.09,1.5713]
[1746680476247,18.19829826,151.13,151.09,13.15277831]
[1746680477348,11.58147831,151.13,151.09,13.15277831]
[1746680478539,11.58147831,151.13,151.09,1.5713]
[1746680478734,11.58147831,151.13,151.09,13.15277831]
[1746680479057,11.58147831,151.14,151.09,13.15277831]
[1746680479554,6.61681995,151.13,151.09,13.15277831]
[1746680479728,18.19829826,151.13,151.09,1.5713]
[1746680479933,18.19829826,151.13,151.09,13.15277831]
[1746680480255,6.61681995,151.13,151.09,13.15277831]
[1746680480750,6.61681995,151.13,151.09,1.5713]
[1746680480953,6.61681995,151.13,151.09,13.15277831]
[1746680481349,6.61681995,151.13,151.1,11.58147831]
[1746680482760,6.61681995,151.13,151.09,1.5713]
[1746680482967,6.61681995,151.13,151.1,11.58147831]
[1746680483468,160.6,151.17,151.11,11.58147831]
[1746680483679,6.61550674,151.16,151.12,11.58147831]
[1746680483839,6.61550674,151.16,151.13,11.58147831]
[1746680484549,134.6,151.17,151.13,11.58147831]
[1746680484550,141.21517733,151.17,151.13,11.58147831]
[1746680484746,141.21517733,151.17,151.14,11.58147831]
[1746680485061,6.61375661,151.2,151.16,11.58147831]
[1746680485360,6.61375661,151.2,151.12,6.61723014]
[1746680485535,6.61375661,151.2,151.17,11.58147831]
[1746680485738,18.19479753,151.21,151.11,28.46147831]
[1746680485935,11.58147831,151.19,151.11,16.88]
[1746680486468,11.58147831,151.18,151.14,11.58147831]
[1746680486846,6.61506912,151.17,151.14,11.58147831]
[1746680487571,11.58147831,151.15,151.1,6.2458]
[1746680487742,11.58147831,151.15,151.1,17.82727831]
[1746680487945,11.58147831,151.14,151.09,1.5713]
[1746680488143,11.58147831,151.11,151.06,6.1022]
[1746680488339,11.58147831,151.1,151.05,1.5681]
[1746680488573,11.58147831,151.11,151.06,11.58147831]
[1746680489167,6.61813368,151.1,151.06,11.58147831]
[1746680489360,18.19961199,151.1,151.05,13.14957831]
[1746680489565,6.61813368,151.1,151.06,11.58147831]
[1746680489749,6.61813368,151.1,151.07,11.58147831]
[1746680490483,11.58147831,151.13,151.08,11.58147831]
[1746680490673,11.58147831,151.12,151.08,11.58147831]
[1746680490863,11.58147831,151.1,151.05,1.5681]
[1746680491057,11.58147831,151.1,151.06,11.58147831]
[1746680491373,6.61833987,151.1,151.06,11.58147831]
[1746680491677,6.61833987,151.1,151.07,11.58147831]
[1746680492574,134.6,151.14,151.09,11.58147831]
[1746680492777,134.6,151.14,151.05,8.18839588]
[1746680492778,6.61594442,151.15,151.11,11.58147831]
[1746680492960,6.61594442,151.15,151.12,11.58147831]
[1746680493365,6.61550674,151.16,151.12,11.58147831]
[1746680494272,11.58147831,151.15,151.08,49.3578]
[1746680494472,11.58147831,151.13,151.09,11.58147831]
[1746680495198,23.1542736,151.16,151.1,11.58147831]
[1746680495494,18.19786047,151.14,151.09,11.58147831]
[1746680495696,6.61638216,151.14,151.1,11.58147831]
[1746680495862,11.58147831,151.13,151.08,23.3578]
[1746680496063,11.58147831,151.11,151.07,82.8]
[1746680496375,11.58147831,151.11,151.06,37.58147831]
[1746680497391,6.61813368,151.1,151.06,37.58147831]
[1746680498590,6.61813368,151.1,151.07,11.58147831]
[1746680500788,6.61813368,151.1,151.08,11.58147831]
[1746680501973,6.61813368,151.1,151.07,11.58147831]
[1746680502997,6.61769571,151.11,151.07,11.58147831]
[1746680505959,6.61769571,151.11,151.08,11.58147831]
[1746680506473,18.19917402,151.11,151.07,11.58147831]
[1746680506681,6.61769571,151.11,151.07,11.58147831]
[1746680507884,6.61769571,151.11,151.08,11.58147831]
[1746680509078,6.61769571,151.11,151.05,1.5681]
[1746680509386,6.61769571,151.11,151.07,11.58147831]
[1746680512801,18.19917402,151.11,151.05,1.5681]
[1746680512982,18.19917402,151.11,151.07,11.58147831]
[1746680514202,11.58147831,151.1,151.05,1.5681]
[1746680514491,11.58147831,151.08,151.03,11.58147831]
[1746680515388,6.61944793,151.07,151.04,11.58147831]
[1746680516218,6.61944793,151.07,151.01,34.26875386]
[1746680516386,6.61944793,151.07,151.04,11.58147831]
[1746680516892,6.61944793,151.07,151.01,34.26875386]
[1746680517068,6.61944793,151.07,151.03,11.58147831]
[1746680517578,6.61944793,151.07,151.04,11.58147831]
[1746680517888,11.58147831,151.06,151.01,27.6467]
[1746680518078,11.58147831,151.06,151.01,39.22817831]
[1746680518281,11.58147831,151.05,151.0,11.58147831]
[1746680519080,6.62076271,151.04,151.0,11.58147831]
[1746680519389,6.62076271,151.04,150.98,26.0]
[1746680519592,6.62076271,151.04,151.0,11.58147831]
[1746680520089,18.20224102,151.04,150.98,32.62331416]
[1746680520269,18.20224102,151.04,151.0,11.58147831]
[1746680520469,11.58147831,151.02,150.96,82.8]
[1746680520701,11.58147831,151.03,150.98,11.58147831]
[1746680520883,18.20224102,151.04,150.99,11.58147831]
[1746680521088,6.62076271,151.04,151.01,11.58147831]
[1746680521387,141.2202258,151.06,151.03,11.58147831]
[1746680521580,134.6,151.06,151.05,11.58147831]
[1746680521776,6.61813368,151.1,151.05,11.58147831]
[1746680521994,6.61784659,151.11,151.09,11.58147831]
[1746680522989,6.61784659,151.11,151.08,11.58147831]
[1746680523172,6.6172578,151.12,151.08,11.58147831]
[1746680523469,6.6172578,151.12,151.09,11.58147831]
[1746680524091,16.54308003,151.13,151.09,11.58147831]
[1746680524492,28.12455834,151.13,151.09,11.58147831]
[1746680524693,19.9154905,151.13,151.07,11.58147831]
[1746680524990,11.58147831,151.11,151.06,11.58147831]
[1746680525369,11.58147831,151.12,151.07,11.58147831]
[1746680526302,6.61769571,151.11,151.07,11.58147831]
[1746680527682,11.58147831,151.11,151.07,11.58147831]
[1746680528597,11.58147831,151.11,151.06,11.58147831]
[1746680529472,6.61813368,151.1,151.06,11.58147831]
[1746680531673,6.61813368,151.1,151.05,8.0209]
[1746680531873,6.61813368,151.1,151.06,11.58147831]
[1746680540276,18.19873611,151.12,151.07,11.58147831]
[1746680541207,6.61638216,151.14,151.09,11.58147831]
[1746680541498,18.19786047,151.14,151.09,11.58147831]
[1746680541700,11.58147831,151.13,151.08,11.58147831]
[1746680542597,6.6172578,151.12,151.08,11.58147831]
[1746680543204,6.61638216,151.14,151.09,11.58147831]
[1746680543395,6.61638216,151.14,151.08,6.61898913]
[1746680543396,11.58147831,151.13,151.08,11.58147831]
[1746680543987,6.61638216,151.14,151.08,11.58147831]
[1746680544188,11.58147831,151.13,151.08,11.58147831]
[1746680544406,18.19786047,151.14,151.09,11.58147831]
[1746680546105,6.61638216,151.14,151.09,11.58147831]
[1746680546404,18.19786047,151.14,151.09,11.58147831]
[1746680546994,6.61638216,151.14,151.1,11.58147831]
[1746680548404,6.61594442,151.15,151.11,11.58147831]
[1746680549300,18.19742273,151.15,151.09,0.14216157]
[1746680549602,18.19742273,151.15,151.1,11.58147831]
[1746680551310,6.61463156,151.18,151.14,11.58147831]
[1746680552107,6.61463156,151.18,151.16,11.58147831]
[1746680552510,6.61463156,151.18,151.15,11.58147831]
[1746680552812,6.61419406,151.19,151.15,11.58147831]
[1746680553818,6.61419406,151.19,151.17,11.58147831]
[1746680554892,6.61331922,151.21,151.17,11.58147831]
[1746680559413,6.61331922,151.21,151.19,11.58147831]
[1746680561421,6.61288189,151.22,151.18,11.58147831]
[1746680561715,11.58147831,151.21,151.16,37.58147831]
[1746680562106,11.58147831,151.21,151.16,11.58147831]
[1746680562593,11.58147831,151.2,151.16,11.58147831]
[1746680562794,11.58147831,151.2,151.15,13.08257831]
[1746680562995,11.58147831,151.2,151.16,11.58147831]
[1746680563811,6.61419406,151.19,151.16,11.58147831]
[1746680564615,6.61419406,151.19,151.15,1.5011]
[1746680564819,18.19567237,151.19,151.14,37.58147831]
[1746680564998,11.58147831,151.16,151.11,8.0581]
[1746680565202,11.58147831,151.16,151.11,19.63957831]
[1746680565626,11.58147831,151.17,151.12,11.58147831]
[1746680565932,11.58147831,151.16,151.12,11.58147831]
[1746680566822,6.61594442,151.15,151.12,11.58147831]
[1746680569228,6.61594442,151.15,151.11,13.21467831]
[1746680569608,11.58147831,151.14,151.1,16.76]
[1746680569807,11.58147831,151.13,151.07,255.8048]
[1746680570021,11.58147831,151.13,151.08,11.58147831]
[1746680570204,11.58147831,151.13,151.07,255.8048]
[1746680570405,11.58147831,151.13,151.09,11.58147831]
[1746680570736,11.58147831,151.14,151.09,11.58147831]
[1746680570908,11.58147831,151.13,151.07,255.8048]
[1746680571108,6.6172578,151.12,151.08,11.58147831]
[1746680572429,6.6172578,151.12,151.07,255.8048]
[1746680572633,6.6172578,151.12,151.08,11.58147831]
[1746680573525,6.6172578,151.12,151.09,11.58147831]
[1746680577236,6.6172578,151.12,151.07,7.9048]
[1746680577544,18.19873611,151.12,151.06,26.0]
[1746680577711,11.58147831,151.11,151.06,37.58147831]
[1746680578031,11.58147831,151.11,151.07,11.58147831]
[1746680578729,11.58147831,151.11,151.06,37.58147831]
[1746680578945,11.58147831,151.1,151.05,11.58147831]
[1746680579144,11.58147831,151.08,151.04,16.76]
[1746680579305,11.58147831,151.08,151.04,28.34147831]
[1746680579506,11.58147831,151.09,151.04,28.34147831]
[1746680580308,11.58147831,151.07,151.0,99.56]
[1746680580507,11.58147831,151.07,151.02,11.58147831]
[1746680582136,18.20136444,151.06,151.0,16.76]
[1746680582432,18.20136444,151.06,151.02,11.58147831]
[1746680583436,6.61988613,151.06,151.02,11.58147831]
[1746680583757,6.61857171,151.09,151.05,11.58147831]
[1746680583909,18.20005002,151.09,151.05,11.58147831]
[1746680584229,18.20005002,151.09,151.04,11.58147831]
[1746680585130,6.61857171,151.09,151.04,11.58147831]
[1746680585319,11.58147831,151.08,151.04,11.58147831]
[1746680585512,18.20005002,151.09,151.04,11.58147831]
[1746680586532,21.49528622,151.09,151.04,11.58147831]
[1746680586730,11.58147831,151.08,151.04,11.58147831]
[1746680587134,6.61944793,151.07,151.04,11.58147831]
[1746680588033,6.6190601,151.08,151.06,11.58147831]
[1746680588221,134.6,151.1,151.06,11.58147831]
[1746680588618,134.6,151.1,151.02,44.20309798]
[1746680588619,6.61813368,151.1,151.07,11.58147831]
[1746680589017,6.61813368,151.1,151.08,11.58147831]
[1746680589218,42.68386916,151.14,151.09,11.58147831]
[1746680589219,6.6172578,151.12,151.09,11.58147831]
[1746680590232,6.61681995,151.13,151.09,11.58147831]
[1746680590434,18.19829826,151.13,151.09,11.58147831]
[1746680591840,18.19829826,151.13,151.08,11.58147831]
[1746680592314,11.58147831,151.11,151.06,11.58147831]
[1746680593517,11.58147831,151.1,151.06,11.58147831]
[1746680593835,6.61813368,151.1,151.05,18.296]
[1746680594018,11.58147831,151.09,151.05,28.34147831]
[1746680594218,11.58147831,151.09,151.05,11.58147831]
[1746680594944,11.58147831,151.08,151.04,11.58147831]
[1746680595418,11.58147831,151.08,151.01,107.3124]
[1746680595619,11.58147831,151.07,151.03,11.58147831]
[1746680596142,11.58147831,151.08,151.03,11.58147831]
[1746680596335,6.61944793,151.07,151.03,11.58147831]
[1746680596530,6.61944793,151.07,151.04,11.58147831]
[1746680596941,18.20092624,151.07,151.01,24.5124]
[1746680597140,18.20092624,151.07,151.03,11.58147831]
[1746680597442,6.61944793,151.07,151.04,11.58147831]
[1746680598341,23.16672397,151.08,151.01,24.5124]
[1746680598643,23.16672397,151.08,151.04,11.58147831]
[1746680598855,11.58147831,151.07,151.03,11.58147831]
[1746680600723,6.61988613,151.06,151.01,18.3355]
[1746680600917,18.20136444,151.06,151.01,29.91697831]
[1746680601862,11.58147831,151.03,150.95,8.62738465]
[1746680602146,11.58147831,151.03,150.98,11.58147831]
[1746680602738,11.58147831,151.03,150.95,50.96752787]
[1746680602947,6.62163951,151.02,150.98,11.58147831]
[1746680603339,18.20311782,151.02,150.98,11.58147831]
[1746680603647,6.62163951,151.02,150.98,11.58147831]
[1746680604159,6.61988613,151.06,151.01,11.58147831]
[1746680604365,6.61988613,151.06,151.02,11.58147831]
[1746680604525,6.61988613,151.06,151.03,11.58147831]
[1746680604835,6.61988613,151.06,151.02,11.58147831]
[1746680610354,6.61988613,151.06,151.03,11.58147831]
[1746680611452,25.26822057,151.09,151.03,11.58147831]
[1746680611748,11.58147831,151.08,151.01,8.1999441]
[1746680611941,11.58147831,151.08,151.03,11.58147831]
[1746680614454,6.61944793,151.07,151.03,11.58147831]
[1746680614656,6.61857171,151.09,151.06,11.58147831]
[1746680614946,6.61857171,151.09,151.05,11.58147831]
[1746680616257,18.20005002,151.09,151.05,11.58147831]
[1746680617028,18.20005002,151.09,151.04,11.58147831]
[1746680619145,18.20005002,151.09,151.02,6.62162242]
[1746680619348,18.20005002,151.09,151.04,11.58147831]
[1746680619555,18.20005002,151.09,151.02,6.62162242]
[1746680619749,6.61857171,151.09,151.04,11.58147831]
[1746680619960,6.61857171,151.09,151.07,11.58147831]
[1746680620269,6.61827812,151.1,151.07,11.58147831]
[1746680621297,6.61769571,151.11,151.07,11.58147831]
[1746680622845,18.19917402,151.11,151.07,11.58147831]
[1746680625363,18.19917402,151.11,151.03,13.17488561]
[1746680625568,11.58147831,151.1,151.05,11.58147831]
[1746680625860,11.58147831,151.1,151.06,11.58147831]
[1746680626161,18.19917402,151.11,151.06,11.58147831]
[1746680629151,6.61769571,151.11,151.07,11.58147831]
[1746680629354,6.61769571,151.11,151.08,11.58147831]
[1746680630058,6.61769571,151.11,151.07,11.58147831]
[1746680631066,18.19873611,151.12,151.07,11.58147831]
[1746680631662,6.6172578,151.12,151.08,11.58147831]
[1746680632866,141.21696908,151.13,151.09,11.58147831]
[1746680633066,141.21696908,151.13,151.1,11.58147831]
[1746680633366,141.21696908,151.13,151.09,11.58147831]
[1746680635166,152.79844739,151.13,151.09,11.58147831]
[1746680636768,169.34049728,151.13,151.09,11.58147831]
[1746680637467,169.34049728,151.13,151.08,11.58147831]
[1746680638467,34.74049728,151.13,151.08,11.58147831]
[1746680640167,23.15901897,151.13,151.09,11.58147831]
[1746680640370,6.61696908,151.13,151.11,11.58147831]
[1746680641581,6.61594442,151.15,151.11,11.58147831]
[1746680641748,6.61594442,151.15,151.13,11.58147831]
[1746680642667,6.61594442,151.15,151.12,13.20617831]
[1746680642974,23.15530465,151.16,151.12,13.20617831]
[1746680643266,34.73678296,151.16,151.12,13.20617831]
[1746680644973,16.53979791,151.16,151.12,13.20617831]
[1746680645167,28.12127622,151.16,151.12,13.20617831]
[1746680645473,16.53979791,151.16,151.12,13.20617831]
[1746680645663,6.61506912,151.17,151.13,11.58147831]
[1746680647489,6.61506912,151.17,151.14,11.58147831]
[1746680648089,11.58147831,151.16,151.12,1.6247]
[1746680648371,11.58147831,151.16,151.1,16.72]
[1746680648372,11.58147831,151.16,151.11,11.58147831]
[1746680648561,23.15274193,151.17,151.12,11.58147831]
[1746680648763,11.58147831,151.16,151.12,11.58147831]
[1746680649455,34.73422024,151.17,151.12,11.58147831]
[1746680650953,11.58147831,151.13,151.1,16.72]
[1746680651255,11.58147831,151.15,151.1,11.58147831]
[1746680651451,23.15274193,151.17,151.13,11.58147831]
[1746680651952,23.15274193,151.17,151.14,11.58147831]
[1746680653380,23.15274193,151.17,151.13,11.58147831]
[1746680654050,16.53767281,151.17,151.14,11.58147831]
[1746680654252,6.61331922,151.21,151.16,11.58147831]
[1746680654480,6.61331922,151.21,151.14,1.6409]
[1746680654669,6.61331922,151.21,151.2,11.58147831]
[1746680655182,6.61331922,151.21,151.19,11.58147831]
[1746680655553,23.14442033,151.23,151.19,11.58147831]
[1746680655762,34.72589864,151.23,151.18,11.58147831]
[1746680655979,23.14442033,151.23,151.19,11.58147831]
[1746680656154,23.14442033,151.23,151.14,84.58306157]
[1746680656355,23.14442033,151.23,151.19,11.58147831]
[1746680657386,23.14442033,151.23,151.2,11.58147831]
[1746680657693,16.53197571,151.23,151.2,11.58147831]
[1746680658070,16.53197571,151.23,151.15,0.14216157]
[1746680658277,16.53197571,151.23,151.19,11.58147831]
[1746680658984,23.14442033,151.23,151.19,11.58147831]
[1746680659175,23.14442033,151.23,151.15,0.14216157]
[1746680659376,34.72589864,151.23,151.18,11.58147831]
[1746680659778,23.14442033,151.23,151.18,11.58147831]
[1746680659961,6.61244462,151.23,151.22,11.58147831]
[1746680660688,6.61244462,151.23,151.18,26.0]
[1746680660892,6.61244462,151.23,151.22,11.58147831]
[1746680661182,6.61157024,151.25,151.18,26.0]
[1746680661385,6.61157024,151.25,151.22,11.58147831]
[1746680663179,6.61157024,151.25,151.18,26.0]
[1746680663358,34.72197416,151.25,151.18,26.0]
[1746680663563,11.58147831,151.24,151.19,11.58147831]
[1746680663775,30.23112717,151.24,151.19,11.58147831]
[1746680664285,11.58147831,151.22,151.16,108.8]
[1746680664589,11.58147831,151.22,151.18,11.58147831]
[1746680664884,30.23112717,151.23,151.18,11.58147831]
[1746680665081,6.61288189,151.22,151.19,11.58147831]
[1746680665263,6.61288189,151.22,151.16,89.41549001]
[1746680665460,6.61157024,151.25,151.21,11.58147831]
[1746680666786,6.61157024,151.25,151.22,11.58147831]
[1746680667084,6.6111623,151.26,151.22,11.58147831]
[1746680667773,6.61080003,151.27,151.24,11.58147831]
[1746680668867,6.61080003,151.27,151.25,11.58147831]
[1746680669086,6.60982219,151.29,151.25,11.58147831]
[1746680669264,18.1913005,151.29,151.24,11.58147831]
[1746680669677,11.58147831,151.28,151.24,11.58147831]
[1746680671389,18.1913005,151.29,151.24,11.58147831]
[1746680672093,11.58147831,151.28,151.21,6.6132035]
[1746680672295,11.58147831,151.28,151.24,11.58147831]
[1746680673190,6.6106961,151.27,151.24,11.58147831]
[1746680674196,18.19173743,151.28,151.24,11.58147831]
[1746680674388,6.61025912,151.28,151.21,6.6132035]
[1746680674788,6.61025912,151.28,151.24,11.58147831]
[1746680678793,11.58147831,151.27,151.2,1.5117]
[1746680678999,11.58147831,151.26,151.21,11.58147831]
[1746680679384,11.58147831,151.26,151.22,11.58147831]
[1746680680191,11.58147831,151.27,151.22,11.58147831]
[1746680680500,30.23112717,151.27,151.22,11.58147831]
[1746680681001,6.61113314,151.26,151.22,11.58147831]
[1746680685899,11.58147831,151.25,151.21,11.58147831]
[1746680687194,11.58147831,151.24,151.19,11.58147831]
[1746680688207,6.61244462,151.23,151.2,11.58147831]
[1746680688388,6.61244462,151.23,151.18,24.17457957]
[1746680688711,6.61157024,151.25,151.21,11.58147831]
[1746680688897,6.61157024,151.25,151.22,11.58147831]
[1746680690009,146.18147831,151.27,151.23,11.58147831]
[1746680690010,134.6,151.27,151.23,11.58147831]
[1746680690808,141.21075683,151.27,151.23,11.58147831]
[1746680691008,152.79223514,151.27,151.23,11.58147831]
[1746680691190,152.79223514,151.27,151.22,11.58147831]
[1746680691191,11.58147831,151.26,151.22,11.58147831]
[1746680691508,11.58147831,151.26,151.21,11.58147831]
[1746680692114,141.21075683,151.27,151.22,11.58147831]
[1746680692286,152.79223514,151.27,151.22,11.58147831]
[1746680694417,141.21075683,151.27,151.23,11.58147831]
[1746680695414,6.61075683,151.27,151.24,11.58147831]
[1746680696018,6.61075683,151.27,151.23,11.58147831]
[1746680696619,18.19223514,151.27,151.23,11.58147831]
[1746680697103,6.61075683,151.27,151.23,11.58147831]
[1746680697304,18.19223514,151.27,151.23,11.58147831]
[1746680697915,11.58147831,151.25,151.21,11.58147831]
[1746680698103,11.58147831,151.25,151.2,6.1766]
[1746680698298,11.58147831,151.26,151.21,11.58147831]
[1746680698491,23.13749709,151.27,151.21,11.58147831]
[1746680698691,11.58147831,151.26,151.22,11.58147831]
[1746680698894,23.13749709,151.27,151.22,11.58147831]
[1746680699096,23.13749709,151.27,151.23,11.58147831]
[1746680699295,6.61025912,151.28,151.24,11.58147831]
[1746680699921,6.61025912,151.28,151.25,11.58147831]
[1746680700712,6.61025912,151.28,151.26,11.58147831]
[1746680701094,6.61025912,151.28,151.25,11.58147831]
[1746680701497,162.70599223,151.3,151.25,11.58147831]
[1746680701498,6.60982219,151.29,151.25,11.58147831]
[1746680701703,6.60982219,151.29,151.26,11.58147831]
[1746680703302,6.60982219,151.29,151.27,11.58147831]
[1746680703611,34.71072719,151.33,151.28,11.58147831]
[1746680703807,34.71072719,151.33,151.29,11.58147831]